bitfinex/quotes_SOLUSD_20230104
["timestamp","ask_amount","ask_price","bid_price","bid_amount"]
[1672837610277,55.63,13.493,13.487,33.71]
[1672837610914,80.4766,13.497,13.487,33.71]
[1672837611135,80.4766,13.497,13.488,20.0]
[1672837611343,24.8566,13.497,13.488,20.0]
[1672837611763,30.0,13.496,13.488,20.0]
[1672837612077,30.0,13.496,13.483,52.53]
[1672837612487,24.8566,13.497,13.484,30.0]
[1672837612694,24.8566,13.497,13.485,20.0]
[1672837612915,24.8566,13.497,13.485,76.6504]
[1672837613325,24.8566,13.497,13.485,44.1304]
[1672837614063,24.8566,13.497,13.485,76.3604]
[1672837614686,30.0,13.496,13.485,44.1304]
[1672837614893,23.8566,13.497,13.485,44.1304]
[1672837615129,79.4766,13.497,13.485,44.1304]
[1672837615321,53.8566,13.497,13.485,44.1304]
[1672837619637,109.4766,13.497,13.485,44.1304]
[1672837621127,30.0,13.496,13.485,44.1304]
[1672837622496,79.4766,13.497,13.485,44.1304]
[1672837622690,23.8566,13.497,13.485,44.1304]
[1672837623337,23.8566,13.497,13.486,51.7811836]
[1672837623547,23.8566,13.497,13.487,20.0]
[1672837623855,23.8566,13.497,13.488,21.7811836]
[1672837628991,23.8566,13.497,13.487,20.0]
[1672837632688,23.8566,13.497,13.487,41.7811836]
[1672837633000,23.8566,13.497,13.488,128.26779729]
[1672837633219,1.0,13.5,13.489,20.0]
[1672837633401,1.0,13.5,13.49,30.0]
[1672837633610,1.0,13.5,13.491,20.0]
[1672837633841,1.0,13.5,13.493,30.0]
[1672837634049,1.0,13.5,13.494,20.0]
[1672837634258,1.0,13.5,13.495,30.0]
[1672837634587,1.0,13.5,13.496,20.0]
[1672837635315,1.0,13.5,13.497,30.0]
[1672837635528,1.0,13.5,13.498,20.0]
[1672837635933,1.0,13.5,13.499,30.0]
[1672837638373,22.31,13.51,13.5,1.0]
[1672837638997,22.31,13.51,13.498,20.0]
[1672837639846,55.57,13.509,13.498,20.0]
[1672837640046,30.0,13.508,13.498,20.0]
[1672837640247,55.57,13.507,13.497,20.0]
[1672837640457,55.57,13.509,13.496,20.0]
[1672837641526,30.0,13.508,13.496,20.0]
[1672837642464,30.0,13.508,13.496,50.0]
[1672837642784,55.57,13.509,13.497,30.0]
[1672837643000,79.4008,13.511,13.497,30.0]
[1672837643201,79.4008,13.511,13.498,20.0]
[1672837643403,79.4008,13.511,13.498,41.7811836]
[1672837643613,79.4008,13.511,13.499,21.7811836]
[1672837645311,79.4008,13.511,13.498,20.0]
[1672837645519,30.0,13.51,13.496,50.0]
[1672837645846,55.57,13.509,13.496,50.0]
[1672837646240,55.57,13.509,13.496,20.0]
[1672837646448,55.57,13.509,13.496,50.0]
[1672837646773,55.57,13.509,13.496,20.0]
[1672837647607,30.0,13.508,13.496,20.0]
[1672837650262,55.57,13.509,13.496,20.0]
[1672837650490,55.57,13.509,13.497,30.0]
[1672837650666,55.57,13.509,13.498,20.0]
[1672837651183,30.0,13.508,13.498,20.0]
[1672837651398,52.38,13.51,13.498,20.0]
[1672837651399,55.57,13.507,13.498,20.0]
[1672837651622,55.57,13.507,13.496,30.0]
[1672837651623,55.57,13.509,13.497,20.0]
[1672837652895,22.38,13.51,13.497,20.0]
[1672837653080,79.4008,13.511,13.497,20.0]
[1672837653289,79.4008,13.511,13.498,30.0]
[1672837657296,30.0,13.516,13.498,30.0]
[1672837657297,55.54,13.515,13.498,80.90913228]
[1672837657510,46.6193,13.518,13.499,150.57122505]
[1672837657724,46.6193,13.518,13.5,30.0]
[1672837657936,46.6193,13.518,13.501,160.7666]
[1672837658128,46.6193,13.518,13.502,20.0]
[1672837658337,46.6193,13.518,13.502,75.91653968]
[1672837658654,46.6193,13.518,13.503,168.98269151]
[1672837658879,46.6193,13.518,13.505,30.0]
[1672837659081,46.6193,13.518,13.506,42.5417]
[1672837659082,23.9315,13.518,13.506,42.5417]
[1672837659295,55.51,13.523,13.506,173.11292505]
[1672837659499,19.0969961,13.524,13.506,103.82666823]
[1672837659724,74.6069961,13.523,13.507,30.0]
[1672837659921,55.51,13.523,13.508,20.0]
[1672837660130,74.5969961,13.526,13.508,20.0]
[1672837660447,30.0,13.525,13.508,20.0]
[1672837660672,55.5,13.524,13.508,20.0]
[1672837660885,30.0,13.523,13.508,20.0]
[1672837661113,55.51,13.522,13.508,20.0]
[1672837661835,55.51,13.522,13.506,83.82666823]
[1672837661836,30.0,13.521,13.507,20.0]
[1672837662024,55.52,13.52,13.507,20.0]
[1672837662868,30.0,13.519,13.507,20.0]
[1672837663070,55.53,13.518,13.507,20.0]
[1672837663523,30.0,13.517,13.507,20.0]
[1672837663699,55.54,13.516,13.507,20.0]
[1672837663922,55.53,13.518,13.507,20.0]
[1672837666545,30.0,13.517,13.507,20.0]
[1672837666755,55.53,13.518,13.507,20.0]
[1672837667822,30.0,13.517,13.507,20.0]
[1672837668140,55.54,13.516,13.507,20.0]
[1672837668367,55.53,13.518,13.507,20.0]
[1672837669275,24.9802,13.519,13.508,30.0]
[1672837673287,24.9802,13.519,13.507,50.0]
[1672837674335,55.53,13.518,13.508,30.0]
[1672837674550,24.9802,13.519,13.508,30.0]
[1672837679591,24.9802,13.519,13.508,51.7811836]
[1672837680139,24.9802,13.519,13.508,30.0]
[1672837683409,55.53,13.518,13.508,30.0]
[1672837684950,24.9802,13.519,13.508,30.0]
[1672837687297,55.51,13.522,13.508,30.0]
[1672837687298,55.51,13.522,13.508,51.7811836]
[1672837687505,22.5047,13.524,13.51,30.0]
[1672837687709,22.5047,13.524,13.511,20.0]
[1672837687923,22.5047,13.524,13.512,30.0]
[1672837688133,22.5047,13.524,13.513,43.8799]
[1672837688659,22.5047,13.524,13.514,51.7811836]
[1672837688873,22.5047,13.524,13.515,20.0]
[1672837689066,22.5047,13.524,13.516,30.0]
[1672837689276,22.5047,13.524,13.518,30.0]
[1672837689489,23.0423,13.527,13.518,30.0]
[1672837692127,23.0423,13.527,13.518,51.7811836]
[1672837694971,23.0423,13.527,13.518,30.0]
[1672837696536,23.0423,13.527,13.519,20.0]
[1672837696757,55.46,13.534,13.519,20.0]
[1672837696968,22.8015,13.537,13.52,44.9621836]
[1672837696969,55.46,13.536,13.52,44.9621836]
[1672837697173,55.46,13.536,13.522,30.0]
[1672837697496,55.46,13.536,13.524,30.0]
[1672837697707,55.46,13.536,13.525,20.0]
[1672837698106,55.46,13.536,13.526,30.0]
[1672837698525,55.46,13.536,13.527,20.0]
[1672837699473,55.46,13.536,13.528,30.0]
[1672837699685,22.8015,13.537,13.528,30.0]
[1672837699896,23.1185,13.538,13.528,51.7811836]
[1672837700207,167.372,13.539,13.528,51.7811836]
[1672837700417,111.932,13.539,13.528,51.7811836]
[1672837702752,167.372,13.539,13.528,51.7811836]
[1672837702963,111.932,13.539,13.528,51.7811836]
[1672837703483,167.372,13.539,13.528,30.0]
[1672837706952,167.372,13.539,13.527,20.0]
[1672837707372,18.57809414,13.538,13.527,20.0]
[1672837707684,18.57809414,13.538,13.516,24.4074]
[1672837707685,30.0,13.536,13.516,24.4074]
[1672837707898,112.56,13.53,13.517,30.0]
[1672837708111,55.48,13.529,13.517,30.0]
[1672837709272,55.48,13.529,13.518,20.0]
[1672837709460,55.48,13.529,13.517,30.0]
[1672837710615,55.47,13.532,13.518,20.0]
[1672837711672,18.57809414,13.531,13.518,20.0]
[1672837711900,55.48,13.53,13.518,20.0]
[1672837712316,74.05809414,13.53,13.518,20.0]
[1672837712529,48.147,13.533,13.518,20.0]
[1672837713052,48.147,13.533,13.519,30.0]
[1672837713377,74.03809414,13.535,13.521,30.0]
[1672837713568,74.03809414,13.535,13.522,42.7369]
[1672837713782,74.03809414,13.535,13.523,30.0]
[1672837714319,74.03809414,13.535,13.524,20.0]
[1672837716083,30.0,13.534,13.522,114.5869]
[1672837716293,22.48,13.53,13.515,47.3719]
[1672837716503,55.48,13.529,13.518,20.0]
[1672837717141,30.0,13.528,13.517,20.0]
[1672837717354,55.49,13.527,13.517,20.0]
[1672837717888,55.49,13.527,13.516,54.4074]
[1672837718835,55.48,13.529,13.516,54.4074]
[1672837719048,55.48,13.529,13.516,24.4074]
[1672837719456,55.48,13.529,13.516,54.4074]
[1672837720088,55.48,13.529,13.517,20.0]
[1672837721765,30.0,13.528,13.517,20.0]
[1672837721981,30.0,13.528,13.512,24.4955]
[1672837721982,30.0,13.526,13.493,30.0]
[1672837722193,22.38,13.52,13.5,182.2248]
[1672837722395,79.1788,13.519,13.501,50.0]
[1672837722817,79.1788,13.519,13.501,30.0]
[1672837723032,23.6588,13.519,13.501,30.0]
[1672837723771,53.6588,13.519,13.501,30.0]
[1672837724301,23.6588,13.519,13.501,30.0]
[1672837724744,23.6588,13.519,13.501,73.74050143]
[1672837725333,23.6588,13.519,13.503,30.0]
[1672837725549,23.6588,13.519,13.504,43.1301]
[1672837725877,23.6588,13.519,13.505,30.0]
[1672837726081,23.6588,13.519,13.506,20.0]
[1672837726284,23.6588,13.519,13.507,30.0]
[1672837726494,23.6588,13.519,13.508,20.0]
[1672837730707,23.6588,13.519,13.509,30.0]
[1672837731032,85.5,13.526,13.51,20.0]
[1672837731243,55.49,13.527,13.51,20.0]
[1672837731457,55.49,13.527,13.511,45.6351]
[1672837731663,30.0,13.526,13.512,20.0]
[1672837732072,30.0,13.526,13.512,133.0975]
[1672837732397,30.0,13.524,13.512,133.0975]
[1672837734929,55.5,13.525,13.512,133.0975]
[1672837735122,55.49,13.527,13.513,30.0]
[1672837735339,55.49,13.527,13.514,20.0]
[1672837735544,22.6523,13.528,13.514,20.0]
[1672837735869,22.6523,13.528,13.515,23.0645]
[1672837736083,55.49,13.527,13.516,20.0]
[1672837736919,30.0,13.527,13.516,20.0]
[1672837739003,108.1423,13.528,13.516,20.0]
[1672837739219,30.0,13.527,13.516,20.0]
[1672837746074,78.1423,13.528,13.516,20.0]
[1672837746286,22.6523,13.528,13.516,20.0]
[1672837748500,55.49,13.527,13.516,20.0]
[1672837748689,30.0,13.526,13.516,20.0]
[1672837750483,55.49,13.527,13.516,20.0]
[1672837750682,55.48,13.53,13.517,30.0]
[1672837750888,112.52,13.54,13.519,30.0]
[1672837750889,55.46,13.535,13.519,30.0]
[1672837751096,55.45,13.537,13.52,20.0]
[1672837751308,24.149,13.538,13.521,30.0]
[1672837751643,54.149,13.538,13.523,30.0]
[1672837752168,54.149,13.538,13.524,20.0]
[1672837752561,111.6831,13.54,13.524,20.0]
[1672837753001,167.1231,13.54,13.524,20.0]
[1672837753216,30.0,13.539,13.523,20.0]
[1672837753410,55.45,13.538,13.523,20.0]
[1672837753837,30.0,13.537,13.523,50.0]
[1672837754580,55.45,13.538,13.523,50.0]
[1672837754803,10.50000002,13.544,13.524,30.0]
[1672837755113,10.50000002,13.544,13.526,30.0]
[1672837755332,10.50000002,13.544,13.527,66.2939]
[1672837755640,10.50000002,13.544,13.527,88.0750836]
[1672837755853,55.43,13.543,13.527,46.2939]
[1672837756057,30.0,13.539,13.527,46.2939]
[1672837756269,55.45,13.538,13.527,46.2939]
[1672837756472,55.44,13.539,13.528,30.0]
[1672837757425,55.44,13.539,13.527,46.2939]
[1672837757639,30.0,13.538,13.528,20.0]
[1672837757847,55.45,13.537,13.528,20.0]
[1672837758062,30.0,13.536,13.528,20.0]
[1672837758267,55.46,13.535,13.528,20.0]
[1672837758476,30.0,13.534,13.528,20.0]
[1672837758885,30.0,13.534,13.524,20.0]
[1672837759225,55.46,13.535,13.524,20.0]
[1672837759435,30.0,13.534,13.524,20.0]
[1672837759752,30.0,13.534,13.52,9.955]
[1672837759955,55.47,13.533,13.52,9.955]
[1672837760272,22.28,13.53,13.52,9.955]
[1672837760463,85.49,13.529,13.52,9.955]
[1672837761622,55.49,13.529,13.52,9.955]
[1672837762054,30.0,13.528,13.52,9.955]
[1672837764568,55.49,13.529,13.52,9.955]
[1672837765215,30.0,13.528,13.52,9.955]
[1672837769946,30.0,13.526,13.52,9.955]
[1672837770141,55.49,13.527,13.52,9.955]
[1672837770565,30.0,13.528,13.52,9.955]
[1672837771415,55.49,13.527,13.52,9.955]
[1672837771609,50.0,13.526,13.52,9.955]
[1672837771819,30.0,13.524,13.52,9.955]
[1672837772153,30.0,13.522,13.52,9.955]
[1672837783613,30.0,13.526,13.52,9.955]
[1672837784328,30.0,13.528,13.52,9.955]
[1672837784781,30.0,13.528,13.511,9.417]
[1672837784972,30.0,13.528,13.512,20.0]
[1672837785180,30.0,13.528,13.513,144.2352]
[1672837785373,30.0,13.528,13.514,20.0]
[1672837785588,30.0,13.528,13.515,9.953]
[1672837786115,30.0,13.528,13.516,20.0]
[1672837786755,30.0,13.528,13.516,66.0904]
[1672837787899,30.0,13.529,13.516,66.0904]
[1672837789808,30.0,13.53,13.516,66.0904]
[1672837791913,54.7159,13.531,13.516,66.0904]
[1672837795840,56.1359755,13.531,13.516,66.0904]
[1672837796546,7.8251477,13.53,13.516,66.0904]
[1672837797820,7.8251477,13.53,13.515,9.953]
[1672837797821,74.06809414,13.529,13.515,9.953]
[1672837798032,30.0,13.527,13.515,9.953]
[1672837798224,75.5,13.526,13.515,9.953]
[1672837798435,77.54651383,13.526,13.515,9.953]
[1672837798644,30.0,13.525,13.515,9.953]
[1672837798861,55.51,13.524,13.515,9.953]
[1672837799074,30.0,13.523,13.515,9.953]
[1672837799826,31.4200755,13.523,13.515,9.953]
[1672837801907,1.4200755,13.523,13.515,9.953]
[1672837802233,1.4200755,13.523,13.516,20.0]
[1672837802868,1.4200755,13.523,13.515,9.953]
[1672837804031,31.4200755,13.523,13.515,9.953]
[1672837804435,55.51,13.522,13.515,9.953]
[1672837804766,30.0,13.52,13.515,9.953]
[1672837804960,55.53,13.519,13.515,9.953]
[1672837805172,30.0,13.517,13.515,9.953]
[1672837805388,75.54,13.516,13.5,30.0]
[1672837805594,22.41,13.51,13.5,30.0]
[1672837806329,22.41,13.51,13.499,110.2758]
[1672837806970,55.55,13.514,13.499,110.2758]
[1672837810444,88.56706153,13.515,13.499,110.2758]
[1672837813487,78.6954,13.515,13.499,110.2758]
[1672837813697,23.1554,13.515,13.499,110.2758]
[1672837814737,1.4200755,13.516,13.499,110.2758]
[1672837814950,1.4200755,13.516,13.501,8.83168138]
[1672837815167,1.4200755,13.516,13.502,20.0]
[1672837815377,1.4200755,13.516,13.503,47.6827]
[1672837815588,1.4200755,13.516,13.504,20.0]
[1672837815777,1.4200755,13.516,13.505,108.1363]
[1672837815990,1.4200755,13.516,13.506,20.0]
[1672837816199,1.4200755,13.516,13.506,44.3983]
[1672837816628,1.4200755,13.516,13.496,24.0219]
[1672837816841,55.54,13.515,13.497,153.3208]
[1672837817062,214.7622,13.515,13.497,153.3208]
[1672837820113,214.7622,13.515,13.498,20.0]
[1672837829346,216.80871383,13.515,13.498,20.0]
[1672837832927,55.54,13.515,13.498,20.0]
[1672837834584,1.4200755,13.516,13.498,20.0]
[1672837836602,55.54,13.515,13.498,20.0]
[1672837838269,55.54,13.515,13.497,153.3208]
[1672837838688,24.1719,13.514,13.497,153.3208]
[1672837838995,55.55,13.513,13.497,153.3208]
[1672837839530,55.55,13.513,13.498,20.0]
[1672837839954,55.55,13.513,13.497,153.3208]
[1672837841335,55.55,13.513,13.498,20.0]
[1672837842693,24.1719,13.514,13.498,20.0]
[1672837844265,55.55,13.513,13.498,20.0]
[1672837844476,79.7219,13.514,13.498,20.0]
[1672837864887,79.7219,13.514,13.499,21.7811836]
[1672837865084,79.7219,13.514,13.498,20.0]
[1672837879927,128.88880756,13.514,13.498,20.0]
[1672837882137,79.7219,13.514,13.498,20.0]
[1672837882332,79.7219,13.514,13.498,64.18257129]
[1672837882540,55.55,13.514,13.498,64.18257129]
[1672837882748,1.4200755,13.516,13.498,64.18257129]
[1672837882749,55.54,13.515,13.498,64.18257129]
[1672837884018,24.9704,13.514,13.498,64.18257129]
[1672837884224,55.55,13.513,13.498,44.18257129]
[1672837884759,55.55,13.513,13.498,21.7811836]
[1672837885191,55.55,13.513,13.497,153.3208]
[1672837885375,55.55,13.513,13.498,21.7811836]
[1672837887690,55.55,13.513,13.497,153.3208]
[1672837887907,55.55,13.513,13.498,20.0]
[1672837890237,55.55,13.513,13.499,21.7811836]
[1672837891705,55.55,13.514,13.5,44.374]
[1672837891896,1.4200755,13.516,13.5,44.374]
[1672837892108,1.4200755,13.516,13.501,65.96375489]
[1672837892433,1.4200755,13.516,13.5,44.374]
[1672837892434,1.4200755,13.516,13.502,41.7811836]
[1672837892748,1.4200755,13.516,13.5,44.374]
[1672837892749,55.54,13.515,13.503,131.0597]
[1672837892969,1.4200755,13.516,13.504,23.1078]
[1672837893159,1.4200755,13.516,13.505,20.0]
[1672837893372,1.4200755,13.516,13.505,41.7811836]
[1672837893579,1.4200755,13.516,13.506,21.7811836]
[1672837893905,1.4200755,13.516,13.507,20.0]
[1672837894218,1.4200755,13.516,13.508,21.7811836]
[1672837896000,1.4200755,13.516,13.507,43.1078]
[1672837898630,1.4200755,13.516,13.507,23.1078]
[1672837898846,1.4200755,13.516,13.508,20.0]
[1672837899058,1.4200755,13.516,13.496,24.0219]
[1672837899267,78.7326,13.515,13.497,186.5689]
[1672837899479,78.7326,13.515,13.497,188.3500836]
[1672837900747,78.7326,13.515,13.498,20.0]
[1672837901158,78.7326,13.515,13.498,21.7811836]
[1672837901570,23.1926,13.515,13.498,21.7811836]
[1672837901780,23.1926,13.515,13.499,47.64362035]
[1672837902226,23.1926,13.515,13.5,21.7811836]
[1672837902625,1.4200755,13.516,13.501,20.0]
[1672837902953,1.4200755,13.516,13.501,23.2686]
[1672837903277,55.54,13.515,13.501,23.2686]
[1672837905264,56.9600755,13.516,13.502,21.7811836]
[1672837906100,30.0,13.515,13.502,21.7811836]
[1672837906726,1.4200755,13.516,13.502,21.7811836]
[1672837906943,1.4200755,13.516,13.504,30.0]
[1672837907157,1.4200755,13.516,13.505,42.5553]
[1672837907582,1.4200755,13.516,13.505,64.3364836]
[1672837907979,1.4200755,13.516,13.506,30.0]
[1672837908198,1.4200755,13.516,13.507,20.0]
[1672837908406,1.4200755,13.516,13.508,23.1468]
[1672837909701,1.4200755,13.516,13.508,44.9279836]
[1672837909905,1.4200755,13.516,13.509,30.0]
[1672837910124,1.4200755,13.516,13.509,73.84806117]
[1672837910429,1.4200755,13.516,13.51,21.7811836]
[1672837911259,1.4200755,13.516,13.509,73.84806117]
[1672837911680,1.4200755,13.516,13.51,63.84806117]
[1672837911884,1.4200755,13.516,13.511,30.0]
[1672837912092,1.4200755,13.516,13.512,20.0]
[1672837912310,1.4200755,13.516,13.513,30.0]
[1672837912509,1.4200755,13.516,13.514,20.0]
[1672837913165,1.4200755,13.516,13.515,21.7811836]
[1672837913358,1.4200755,13.516,13.515,41.7811836]
[1672837913569,1.4200755,13.516,13.515,20.0]
[1672837914106,1.4200755,13.516,13.513,20.0]
[1672837918741,1.4200755,13.516,13.513,41.7811836]
[1672837920011,1.4200755,13.516,13.513,21.7811836]
[1672837920315,1.4200755,13.516,13.512,24.9927]
[1672837929018,1.4200755,13.516,13.513,51.7811836]
[1672837929344,1.4200755,13.516,13.514,51.7811836]
[1672837929668,1.4200755,13.516,13.515,41.7811836]
[1672837930407,1.4200755,13.516,13.515,20.0]
[1672837930614,1.4200755,13.516,13.513,20.0]
[1672837931019,1.4200755,13.516,13.515,21.7811836]
[1672837931454,1.4200755,13.516,13.515,41.7811836]
[1672837941980,85.5,13.526,13.515,41.7811836]
[1672837942183,30.0,13.526,13.516,20.0]
[1672837942517,30.0,13.526,13.517,21.7811836]
[1672837943132,30.0,13.526,13.518,20.0]
[1672837943540,30.0,13.526,13.519,21.7811836]
[1672837943749,55.49,13.528,13.519,21.7811836]
[1672837944076,23.5437,13.53,13.521,30.0]
[1672837944394,22.37,13.54,13.522,41.7811836]
[1672837944395,55.46,13.536,13.522,41.7811836]
[1672837944582,55.45,13.538,13.522,88.1851836]
[1672837944791,30.0,13.537,13.523,21.7811836]
[1672837945023,55.46,13.536,13.524,20.0]
[1672837945546,55.46,13.536,13.525,45.1298836]
[1672837945952,55.46,13.536,13.526,21.7811836]
[1672837946298,55.46,13.536,13.527,20.0]
[1672837946469,30.0,13.535,13.527,20.0]
[1672837946676,30.0,13.535,13.528,21.7811836]
[1672837947532,55.46,13.536,13.528,21.7811836]
[1672837947748,30.0,13.537,13.528,21.7811836]
[1672837947948,30.0,13.535,13.527,20.0]
[1672837948277,55.47,13.534,13.526,20.0]
[1672837948489,30.0,13.533,13.526,21.7811836]
[1672837948703,55.47,13.532,13.518,48.5647]
[1672837949013,55.47,13.532,13.518,70.3458836]
[1672837949014,30.0,13.531,13.518,70.3458836]
[1672837949418,30.0,13.531,13.518,48.5647]
[1672837949629,80.1057,13.532,13.519,30.0]
[1672837951124,80.1057,13.532,13.518,78.5647]
[1672837951340,80.1057,13.532,13.52,21.7811836]
[1672837951763,80.1057,13.532,13.518,78.5647]
[1672837951960,30.0,13.531,13.518,48.5647]
[1672837952492,55.48,13.53,13.518,48.5647]
[1672837953843,85.48,13.531,13.518,48.5647]
[1672837955013,55.48,13.531,13.519,30.0]
[1672837956172,55.48,13.531,13.52,21.7811836]
[1672837956368,24.6357,13.532,13.52,21.7811836]
[1672837957958,24.6357,13.532,13.521,43.0797198]
[1672837958175,24.6357,13.532,13.52,21.7811836]
[1672837958371,24.6357,13.532,13.521,21.7811836]
[1672837958694,24.6357,13.532,13.519,30.0]
[1672837958909,24.6357,13.532,13.521,43.0797198]
[1672837959221,55.47,13.534,13.522,50.0]
[1672837959417,55.45,13.537,13.523,24.0301]
[1672837959626,55.45,13.537,13.524,50.0]
[1672837959841,102.8857,13.54,13.524,115.57320087]
[1672837960057,47.4457,13.54,13.526,30.0]
[1672837960269,47.4457,13.54,13.527,24.9832]
[1672837960484,55.44,13.539,13.528,20.0]
[1672837960690,55.44,13.539,13.528,41.7811836]
[1672837960905,55.44,13.539,13.529,21.7811836]
[1672837961311,30.0,13.538,13.529,21.7811836]
[1672837962278,55.44,13.539,13.528,20.0]
[1672837963098,30.0,13.538,13.528,20.0]
[1672837963639,30.0,13.536,13.528,20.0]
[1672837964377,30.0,13.536,13.518,54.2291]
[1672837964378,30.0,13.534,13.518,24.2291]
[1672837964591,55.47,13.533,13.518,47.7199]
[1672837964778,30.0,13.532,13.518,47.7199]
[1672837964992,54.1311,13.532,13.519,21.7811836]
[1672837966903,54.1311,13.532,13.519,51.7811836]
[1672837967307,24.1311,13.532,13.519,51.7811836]
[1672837967851,24.1311,13.532,13.52,21.7811836]
[1672837968052,24.1311,13.532,13.519,30.0]
[1672837968270,24.1311,13.532,13.52,21.7811836]
[1672837968458,24.1311,13.532,13.519,30.0]
[1672837969319,24.1311,13.532,13.518,99.5010836]
[1672837969509,24.1311,13.532,13.52,21.7811836]
[1672837969724,24.1311,13.532,13.518,47.7199]
[1672837970474,24.1311,13.532,13.518,104.56576754]
[1672837970670,24.1311,13.532,13.518,82.78458394]
[1672837970883,24.1311,13.532,13.518,47.7199]
[1672837971315,30.0,13.531,13.518,47.7199]
[1672837971822,30.0,13.531,13.519,21.7811836]
[1672837972977,30.0,13.531,13.519,51.7811836]
[1672837973307,30.0,13.531,13.519,21.7811836]
[1672837973627,30.0,13.531,13.52,21.7811836]
[1672837977074,54.1311,13.532,13.52,21.7811836]
[1672837977286,24.1311,13.532,13.52,21.7811836]
[1672837979805,24.1311,13.532,13.518,47.7199]
[1672837980696,22.41,13.53,13.518,47.7199]
[1672837980908,77.89,13.53,13.518,47.7199]
[1672837981111,30.0,13.529,13.518,47.7199]
[1672837989938,85.49,13.529,13.518,47.7199]
[1672837990889,85.49,13.529,13.517,138.7677]
[1672837990890,20.0,13.528,13.494,127.2610599]
[1672837991107,22.21,13.52,13.508,22.7312]
[1672837991319,55.53,13.519,13.505,21.7811836]
[1672837991534,30.0,13.518,13.506,163.6235]
[1672837991850,30.0,13.518,13.506,185.4046836]
[1672837992687,30.0,13.518,13.507,20.0]
[1672837992883,30.0,13.518,13.506,185.4046836]
[1672837993851,30.0,13.518,13.506,163.6235]
[1672837994163,30.0,13.518,13.507,20.0]
[1672837997829,85.53,13.518,13.507,20.0]
[1672837998457,20.0,13.517,13.498,31.27]
[1672837998668,22.36,13.51,13.498,141.0041]
[1672837999308,30.0,13.512,13.498,141.0041]
[1672837999944,80.1079,13.513,13.499,30.0]
[1672838000357,24.5579,13.513,13.499,54.88]
[1672838001201,24.5579,13.513,13.499,24.88]
[1672838001408,30.0,13.512,13.499,24.88]
[1672838001627,30.0,13.512,13.498,166.3141]
[1672838001823,30.0,13.512,13.498,141.0041]
[1672838002153,30.0,13.512,13.499,30.0]
[1672838002770,80.1079,13.513,13.5,21.7811836]
[1672838002980,24.5579,13.513,13.5,21.7811836]
[1672838003618,24.5579,13.513,13.5,62.04021644]
[1672838003829,113.7196,13.515,13.501,30.0]
[1672838004036,113.3673,13.53,13.502,20.0]
[1672838004037,24.0108,13.521,13.502,20.0]
[1672838004245,24.0108,13.521,13.504,30.0]
[1672838004246,30.0,13.52,13.504,30.0]
[1672838004457,30.0,13.52,13.505,189.007]
[1672838005200,30.0,13.52,13.506,21.7811836]